fUST/lending_fUST_20240629
["ID","MTS","AMOUNT","RATE_DAILY","PERIOD"]
[330595846,1719607849452,-500.0,0.00021917,4]
[330595848,1719607849461,-2159.86,0.00021917,4]
[330595851,1719607849471,-500.0,0.00021917,4]
[330595852,1719607849480,-500.0,0.00021917,4]
[330595854,1719607849490,-501.17098393,0.00021917,4]
[330595856,1719607849498,-500.0,0.00021917,4]
[330595858,1719607849508,-532.05218,0.00021917,4]
[330595860,1719607849517,-500.0,0.00021917,4]
[330595862,1719607849526,-1656.42,0.00021917,4]
[330595864,1719607849536,-500.0,0.00021917,4]
[330595866,1719607849546,-500.0,0.00021917,4]
[330595868,1719607849555,-3895.6,0.00021917,4]
[330595871,1719607849572,-500.0,0.00021917,4]
[330595874,1719607849592,-335.67278986,0.00021917,4]
[330595878,1719607849611,-502.78525952,0.00021917,4]
[330595881,1719607849631,-500.0,0.00021917,4]
[330595884,1719607849656,-500.0,0.00021917,4]
[330595887,1719607849673,-500.0,0.00021917,4]
[330595890,1719607849694,-500.0,0.00021917,4]
[330595892,1719607849709,-507.10885065,0.00021917,4]
[330595895,1719607849725,-500.0,0.00021917,4]
[330595897,1719607849748,-500.0,0.00021917,4]
[330595898,1719607849762,-500.0,0.00021917,4]
[330595899,1719607849778,-500.0,0.00021917,4]
[330595900,1719607849794,-500.0,0.00021917,4]
[330595901,1719607849810,-500.0,0.00021917,4]
[330595902,1719607849823,-508.9591841,0.00021917,4]
[330595904,1719607849836,-500.0,0.00021917,4]
[330595907,1719607849851,-500.0,0.00021917,4]
[330595909,1719607849866,-500.0,0.00021917,4]
[330595912,1719607849882,-500.0,0.00021917,4]
[330595914,1719607849896,-500.0,0.00021917,4]
[330595917,1719607849910,-500.0,0.00021917,4]
[330595920,1719607849925,-500.0,0.00021917,4]
[330595922,1719607849939,-500.0,0.00021917,4]
[330595925,1719607849954,-1892.79,0.00021917,4]
[330595927,1719607849968,-500.0,0.00021917,4]
[330595930,1719607849983,-500.0,0.00021917,4]
[330595933,1719607849998,-500.0,0.00021917,4]
[330595935,1719607850012,-500.0,0.00021917,4]
[330595938,1719607850027,-550.99411639,0.00021917,4]
[330595941,1719607850041,-1022.3,0.00021917,4]
[330595943,1719607850056,-500.0,0.00021917,4]
[330595946,1719607850071,-500.0,0.00021917,4]
[330595948,1719607850086,-500.0,0.00021917,4]
[330595951,1719607850101,-291.48226518,0.00021917,4]
[330595953,1719607850115,-1000.0,0.00021917,4]
[330595956,1719607850130,-500.0,0.00021917,4]
[330595958,1719607850144,-508.79049393,0.00021917,4]
[330595961,1719607850159,-524.64687362,0.00021917,4]
[330595964,1719607850174,-500.0,0.00021917,4]
[330595966,1719607850189,-500.0,0.00021917,4]
[330595969,1719607850203,-588.18,0.00021917,4]
[330595971,1719607850217,-500.0,0.00021917,4]
[330595974,1719607850232,-500.0,0.00021917,4]
[330595976,1719607850246,-517.60320663,0.00021917,4]
[330595979,1719607850263,-500.0,0.00021917,4]
[330595982,1719607850278,-500.0,0.00021917,4]
[330595984,1719607850293,-500.0,0.00021917,4]
[330595987,1719607850308,-500.0,0.00021917,4]
[330595990,1719607850323,-500.0,0.00021917,4]
[330595992,1719607850336,-500.0,0.00021917,4]
[330595994,1719607850350,-500.0,0.00021917,4]
[330595997,1719607850360,-500.0,0.00021917,4]
[330595999,1719607850369,-511.85967102,0.00021917,4]
[330596001,1719607850379,-503.27726638,0.00021917,4]
[330596003,1719607850388,-500.0,0.00021917,4]
[330596022,1719607850397,-512.38217181,0.00021917,4]
[330596026,1719607850580,-511.4553471,0.00021917,4]
[330596028,1719607850590,-500.0,0.00021917,4]
[330596030,1719607850600,-500.0,0.00021917,4]
[330596032,1719607850609,-500.0,0.00021917,4]
[330596034,1719607850618,-503.62495047,0.00021917,4]
[330596036,1719607850627,-500.0,0.00021917,4]
[330596038,1719607850636,-500.0,0.00021917,4]
[330596040,1719607850647,-1099.13,0.00021917,4]
[330596042,1719607850659,-500.0,0.00021917,4]
[330596044,1719607850668,-1151.12,0.00021917,4]
[330596046,1719607850677,-500.0,0.00021917,4]
[330596048,1719607850686,-500.0,0.00021917,4]
[330596050,1719607850696,-2097.68,0.00021917,4]
[330596052,1719607850705,-500.0,0.00021917,4]
[330596054,1719607850714,-500.0,0.00021917,4]
[330596056,1719607850725,-500.0,0.00021917,4]
[330596058,1719607850735,-512.26562487,0.00021917,4]
[330596060,1719607850744,-505.95559868,0.00021917,4]
[330596062,1719607850753,-522.95402904,0.00021917,4]
[330596064,1719607850762,-500.0,0.00021917,4]
[330596066,1719607850771,-626.37,0.00021917,4]
[330596068,1719607850780,-870.98,0.00021917,4]
[330596070,1719607850790,-2417.84,0.00021917,4]
[330596072,1719607850799,-500.73068335,0.00021917,4]
[330596074,1719607850808,-576.35,0.00021917,4]
[330596076,1719607850817,-500.0,0.00021917,2]
[330596078,1719607850827,-500.0,0.00021917,4]
[330596080,1719607850836,-500.0,0.00021917,4]
[330596082,1719607850846,-782.95,0.00021917,4]
[330596084,1719607850855,-500.0,0.00021917,4]
[330596086,1719607850864,-503.77359284,0.00021917,4]
[330596088,1719607850873,-570.11,0.00021917,4]
[330596090,1719607850882,-808.73,0.00021917,4]
[330596092,1719607850891,-648.92,0.00021917,4]
[330596094,1719607850900,-500.0,0.00021917,4]
[330596096,1719607850909,-500.0,0.00021917,4]
[330596098,1719607850918,-500.0,0.00021917,4]
[330596100,1719607850927,-502.78630621,0.00021917,4]
[330596103,1719607850936,-550.54900707,0.00021917,4]
[330596104,1719607850945,-500.0,0.00021917,4]
[330596106,1719607850954,-1475.65,0.00021917,4]
[330596108,1719607850963,-500.0,0.00021917,4]
[330596110,1719607850972,-500.0,0.00021917,4]
[330596112,1719607850982,-500.0,0.00021917,4]
[330596114,1719607850991,-500.0,0.00021917,4]
[330596117,1719607851000,-500.0,0.00021917,4]
[330596119,1719607851010,-500.0,0.00021917,4]
[330596121,1719607851019,-538.90373826,0.00021917,4]
[330596123,1719607851028,-500.0,0.00021917,4]
[330596124,1719607851037,-713.19,0.00021917,4]
[330596126,1719607851046,-547.14885,0.00021917,4]
[330596129,1719607851055,-500.0,0.00021917,4]
[330596131,1719607851064,-1065.15,0.00021917,4]
[330596133,1719607851074,-548.47645934,0.00021917,4]
[330596135,1719607851085,-500.0,0.00021917,4]
[330596137,1719607851094,-500.0,0.00021917,4]
[330596139,1719607851103,-500.0,0.00021917,4]
[330596141,1719607851112,-500.0,0.00021917,4]
[330596143,1719607851121,-500.0,0.00021917,4]
[330596145,1719607851130,-500.0,0.00021917,4]
[330596147,1719607851139,-532.66370998,0.00021917,4]
[330596149,1719607851148,-963.09,0.00021917,4]
[330596151,1719607851157,-1579.46,0.00021917,4]
[330596153,1719607851166,-2435.33,0.00021917,4]
[330596155,1719607851175,-503.41044813,0.00021917,4]
[330596157,1719607851184,-500.0,0.00021917,4]
[330596159,1719607851193,-500.0,0.00021917,4]
[330596161,1719607851203,-529.44271803,0.00021917,4]
[330596163,1719607851212,-501.11674259,0.00021917,4]
[330596165,1719607851222,-500.0,0.00021917,4]
[330596167,1719607851232,-500.0,0.00021917,4]
[330596169,1719607851242,-500.0,0.00021917,4]
[330596171,1719607851251,-500.0,0.00021917,4]
[330596173,1719607851263,-537.64008342,0.00021917,4]
[330596175,1719607851273,-605.67,0.00021917,4]
[330596177,1719607851282,-3497.92,0.00021917,4]
[330596179,1719607851291,-573.18539181,0.00021917,4]
[330596181,1719607851300,-1671.75,0.00021917,4]
[330596183,1719607851310,-500.0,0.00021917,4]
[330596185,1719607851319,-528.65776828,0.00021917,4]
[330596187,1719607851328,-500.0,0.00021917,4]
[330596189,1719607851337,-3580.13,0.00021917,4]
[330596190,1719607851347,-500.52745422,0.00021917,4]
[330596193,1719607851356,-500.0,0.00021917,4]
[330596195,1719607851365,-500.0,0.00021917,4]
[330596197,1719607851374,-500.0,0.00021917,4]
[330596199,1719607851384,-502.73562815,0.00021917,4]
[330596200,1719607851394,-500.0,0.00021917,4]
[330596202,1719607851404,-579.45,0.00021917,4]
[330596205,1719607851413,-507.29070252,0.00021917,4]
[330596207,1719607851423,-520.29912493,0.00021917,4]
[330596209,1719607851432,-500.0,0.00021917,4]
[330596211,1719607851441,-500.0,0.00021917,4]
[330596212,1719607851451,-1104.83,0.00021917,4]
[330596214,1719607851459,-838.31,0.00021917,4]
[330596217,1719607851469,-1104.83,0.00021917,4]
[330596218,1719607851478,-3240.4,0.00021917,4]
[330596220,1719607851490,-502.87777551,0.00021917,4]
[330596223,1719607851499,-1104.83,0.00021917,4]
[330596225,1719607851508,-1104.83,0.00021917,4]
[330596226,1719607851517,-500.0,0.00021917,4]
[330596229,1719607851527,-1104.83,0.00021917,4]
[330596231,1719607851536,-1104.83,0.00021917,4]
[330596233,1719607851546,-1104.83,0.00021917,4]
[330596235,1719607851556,-1104.83,0.00021917,4]
[330596237,1719607851567,-1104.83,0.00021917,4]
[330596238,1719607851577,-1104.83,0.00021917,4]
[330596240,1719607851588,-1104.83,0.00021917,4]
[330596243,1719607851598,-1104.83,0.00021917,4]
[330596245,1719607851607,-1104.83,0.00021917,4]
[330596246,1719607851616,-1104.83,0.00021917,4]
[330596248,1719607851625,-1104.83,0.00021917,4]
[330596250,1719607851634,-1104.83,0.00021917,4]
[330596252,1719607851644,-1104.83,0.00021917,4]
[330596254,1719607851657,-500.0,0.00021917,4]
[330596257,1719607851667,-1104.83,0.00021917,4]
[330596259,1719607851676,-1104.83,0.00021917,4]
[330596261,1719607851687,-1386.93,0.00021917,4]
[330596262,1719607851696,-500.0,0.00021917,4]
[330596265,1719607851706,-500.0,0.00021917,4]
[330596266,1719607851715,-1104.83,0.00021917,4]
[330596268,1719607851725,-1104.83,0.00021917,4]
[330596270,1719607851735,-1104.83,0.00021917,4]
[330596272,1719607851744,-1104.83,0.00021917,4]
[330596274,1719607851753,-1104.89983617,0.00021917,4]
[330596276,1719607851763,-1452.38,0.00021917,4]
[330596278,1719607851772,-500.0,0.00021917,4]
[330596281,1719607851782,-542.85054937,0.00021917,4]
[330596283,1719607851791,-500.0,0.00021917,4]
[330596285,1719607851800,-504.61529413,0.00021917,4]
[330596287,1719607851810,-500.0,0.00021917,4]
[330596289,1719607851819,-500.0,0.00021917,4]
[330596291,1719607851828,-500.0,0.00021917,4]
[330596293,1719607851837,-500.0,0.00021917,4]
[330596295,1719607851847,-500.0,0.00021917,4]
[330596297,1719607851856,-500.0,0.00021917,4]
[330596299,1719607851866,-1524.69,0.00021917,4]
[330596300,1719607851875,-500.0,0.00021917,4]
[330596303,1719607851885,-500.0,0.00021917,4]
[330596305,1719607851895,-500.0,0.00021917,4]
[330596306,1719607851904,-500.0,0.00021917,4]
[330596309,1719607851914,-552.08699475,0.00021917,4]
[330596311,1719607851923,-519.54314253,0.00021917,4]
[330596312,1719607851932,-500.0,0.00021917,4]
[330596315,1719607851943,-512.60022147,0.00021917,4]
[330596317,1719607851953,-500.0,0.00021917,4]
[330596319,1719607851963,-500.0,0.00021917,4]
[330596320,1719607851972,-795.1,0.00021917,4]
[330596322,1719607851982,-500.0,0.00021917,4]
[330596324,1719607851991,-828.84,0.00021917,4]
[330596326,1719607852001,-500.0,0.00021917,4]
[330596328,1719607852010,-500.0,0.00021917,4]
[330596331,1719607852020,-500.0,0.00021917,4]
[330596332,1719607852029,-543.41657848,0.00021917,4]
[330596334,1719607852038,-500.0,0.00021917,4]
[330596337,1719607852047,-500.0,0.00021917,4]
[330596338,1719607852056,-500.0,0.00021917,4]
[330596341,1719607852066,-500.0,0.00021917,4]
[330596343,1719607852075,-594.53489577,0.00021917,4]
[330596345,1719607852083,-500.0,0.00021917,4]
[330596346,1719607852093,-500.0,0.00021917,4]
[330596349,1719607852102,-500.0,0.00021917,4]
[330596351,1719607852112,-500.0,0.00021917,4]
[330596353,1719607852121,-500.0,0.00021917,4]
[330596355,1719607852130,-500.0,0.00021917,4]
[330596357,1719607852139,-1653.33,0.00021917,4]
[330596358,1719607852148,-500.0,0.00021917,4]
[330596360,1719607852158,-500.0,0.00021917,4]
[330596363,1719607852169,-603.46548571,0.00021917,4]
[330596365,1719607852179,-500.0,0.00021917,4]
[330596367,1719607852188,-506.68759016,0.00021917,4]
[330596369,1719607852198,-500.0,0.00021917,4]
[330596370,1719607852207,-320.61775657,0.00021917,4]
[330596372,1719607852216,-500.0,0.00021917,4]
[330596374,1719607852225,-500.0,0.00021917,4]
[330596376,1719607852235,-552.4560519,0.00021917,4]
[330596378,1719607852244,-500.0,0.00021917,4]
[330596380,1719607852253,-1334.73,0.00021917,4]
[330596382,1719607852263,-500.0,0.00021917,4]
[330596385,1719607852272,-500.0,0.00021917,4]
[330596386,1719607852281,-950.9,0.00021917,4]
[330596389,1719607852290,-500.0,0.00021917,4]
[330596391,1719607852300,-500.0,0.00021917,4]
[330596392,1719607852309,-500.0,0.00021917,4]
[330596395,1719607852319,-1011.4,0.00021917,4]
[330596397,1719607852328,-945.37,0.00021917,4]
[330596399,1719607852337,-500.0,0.00021917,4]
[330596401,1719607852346,-503.81341717,0.00021917,4]
[330596403,1719607852356,-219.5487368,0.00021917,4]
[330596405,1719607852366,-783.18,0.00021917,4]
[330596407,1719607852375,-2732.37,0.00021917,4]
[330596409,1719607852385,-500.0,0.00021917,4]
[330596410,1719607852394,-550.8,0.00021917,4]
[330596412,1719607852404,-654.14,0.00021917,4]
[330596414,1719607852414,-544.92097384,0.00021917,4]
[330596416,1719607852423,-647.57,0.00021917,4]
[330596418,1719607852432,-500.0,0.00021917,4]
[330596420,1719607852442,-500.0,0.00021917,4]
[330596422,1719607852451,-500.0,0.00021917,4]
[330596424,1719607852461,-500.0,0.00021917,4]
[330596426,1719607852470,-500.0,0.00021917,4]
[330596428,1719607852479,-548.91,0.00021917,4]
[330596430,1719607852490,-796.07,0.00021917,4]
[330596432,1719607852499,-517.93,0.00021917,4]
[330596434,1719607852508,-504.28303119,0.00021917,4]
[330596437,1719607852518,-1092.62,0.00021917,4]
[330596438,1719607852527,-174.75770642,0.00021917,4]
[330596440,1719607852538,-508.28836786,0.00021917,4]
[330596453,1719607852645,-1307.34,0.00021917,4]
[330596455,1719607852657,-249.90056185,0.00021917,4]
[330596457,1719607852666,-500.0,0.00021917,4]
[330596459,1719607852675,-504.3311694,0.00021917,4]
[330596461,1719607852686,-514.15812893,0.00021917,4]
[330596463,1719607852695,-5826.14,0.00021917,4]
[330596465,1719607852704,-500.0,0.00021917,4]
[330596467,1719607852713,-646.4,0.00021917,4]
[330596469,1719607852722,-500.0,0.00021917,4]
[330596470,1719607852733,-500.0,0.00021917,4]
[330596473,1719607852743,-500.0,0.00021917,4]
[330596475,1719607852753,-500.0,0.00021917,4]
[330596477,1719607852762,-536.78,0.00021917,4]
[330596479,1719607852772,-500.96284967,0.00021917,4]
[330596481,1719607852780,-500.0,0.00021917,4]
[330596482,1719607852789,-500.0,0.00021917,4]
[330596485,1719607852799,-2289.55,0.00021917,4]
[330596486,1719607852808,-500.0,0.00021917,4]
[330596489,1719607852818,-802.61,0.00021917,4]
[330596491,1719607852827,-757.23,0.00021917,4]
[330596492,1719607852836,-500.0,0.00021917,4]
[330596494,1719607852846,-1274.49,0.00021917,4]
[330596496,1719607852855,-500.0,0.00021917,4]
[330596498,1719607852864,-500.0,0.00021917,4]
[330596501,1719607852873,-500.0,0.00021917,4]
[330596502,1719607852883,-683.6,0.00021917,4]
[330596505,1719607852891,-500.0,0.00021917,4]
[330596507,1719607852901,-624.93,0.00021917,4]
[330596509,1719607852910,-506.91594491,0.00021917,4]
[330596510,1719607852919,-500.0,0.00021917,4]
[330596512,1719607852929,-500.0,0.00021917,4]
[330596514,1719607852938,-855.1,0.00021917,4]
[330596516,1719607852947,-500.0,0.00021917,4]
[330596519,1719607852956,-500.0,0.00021917,4]
[330596521,1719607852965,-566.44,0.00021917,4]
[330596523,1719607852975,-512.72533916,0.00021917,4]
[330596525,1719607852984,-261.17167306,0.00021917,4]
[330596526,1719607852993,-2000.29,0.00021917,4]
[330596528,1719607853002,-1044.52,0.00021917,4]
[330596530,1719607853011,-500.0,0.00021917,4]
[330596532,1719607853020,-223.09830343,0.00021917,4]
[330596534,1719607853030,-500.0,0.00021917,4]
[330596536,1719607853039,-505.29921261,0.00021917,4]
[330596538,1719607853048,-500.0,0.00021917,4]
[330596540,1719607853058,-2187.61,0.00021917,4]
[330596542,1719607853067,-500.0,0.00021917,4]
[330596544,1719607853076,-500.0,0.00021917,4]
[330596546,1719607853085,-524.55176375,0.00021917,4]
[330596548,1719607853094,-500.0,0.00021917,4]
[330596550,1719607853103,-749.64,0.00021917,4]
[330596552,1719607853112,-500.0,0.00021917,4]
[330596554,1719607853121,-500.0,0.00021917,4]
[330596556,1719607853130,-2929.09,0.00021917,4]
[330596558,1719607853139,-500.0,0.00021917,4]
[330596560,1719607853148,-500.0,0.00021917,4]
[330596562,1719607853157,-500.0,0.00021917,4]
[330596565,1719607853167,-2879.22,0.00021917,4]
[330596567,1719607853177,-500.0,0.00021917,4]
[330596569,1719607853186,-500.0,0.00021917,4]
[330596571,1719607853195,-542.29267116,0.00021917,4]
[330596573,1719607853204,-504.66942776,0.00021917,4]
[330596575,1719607853214,-503.38419802,0.00021917,4]
[330596577,1719607853223,-824.44,0.00021917,4]
[330596579,1719607853233,-500.0,0.00021917,4]
[330596581,1719607853242,-1629.13,0.00021917,4]
[330596583,1719607853251,-502.16128469,0.00021917,4]
[330596585,1719607853260,-684.09,0.00021917,4]
[330596587,1719607853269,-500.0,0.00021917,4]
[330596589,1719607853278,-500.0,0.00021917,4]
[330596591,1719607853288,-500.0,0.00021917,4]
[330596592,1719607853297,-500.0,0.00021917,4]
[330596594,1719607853306,-500.0,0.00021917,4]
[330596597,1719607853316,-500.0,0.00021917,4]
[330596599,1719607853325,-500.0,0.00021917,4]
[330596600,1719607853334,-500.0,0.00021917,4]
[330596603,1719607853343,-500.0,0.00021917,4]
[330596605,1719607853352,-500.0,0.00021917,4]
[330596607,1719607853361,-500.0,0.00021917,4]
[330596608,1719607853371,-500.0,0.00021917,4]
[330596610,1719607853380,-500.0,0.00021917,4]
[330596613,1719607853389,-500.0,0.00021917,4]
[330596614,1719607853398,-500.0,0.00021917,4]
[330596617,1719607853408,-500.0,0.00021917,4]
[330596619,1719607853417,-500.0,0.00021917,4]
[330596621,1719607853426,-500.0,0.00021917,4]
[330596623,1719607853435,-2974.13,0.00021917,4]
[330596625,1719607853445,-500.0,0.00021917,4]
[330596627,1719607853454,-500.0,0.00021917,4]
[330596629,1719607853463,-500.0,0.00021917,4]
[330596630,1719607853472,-290.09179027,0.00021917,4]
[330596632,1719607853481,-500.0,0.00021917,4]
[330596634,1719607853492,-500.0,0.00021917,4]
[330596636,1719607853501,-1102.0,0.00021917,4]
[330596639,1719607853511,-531.38037701,0.00021917,4]
[330596641,1719607853521,-152.11716412,0.00021917,4]
[330596643,1719607853530,-643.06,0.00021917,4]
[330596645,1719607853540,-500.0,0.00021917,4]
[330596647,1719607853550,-500.0,0.00021917,4]
[330596649,1719607853560,-500.0,0.00021917,4]
[330596651,1719607853571,-500.0,0.00021917,4]
[330596653,1719607853580,-500.0,0.00021917,4]
[330596655,1719607853589,-500.0,0.00021917,4]
[330596657,1719607853599,-546.49699226,0.00021917,4]
[330596659,1719607853608,-514.13,0.00021917,4]
[330596661,1719607853618,-500.0,0.00021917,4]
[330596663,1719607853627,-512.26264273,0.00021917,4]
[330596665,1719607853637,-151.0,0.00021917,2]
[330596667,1719607853649,-151.0,0.00021917,2]
[330596669,1719607853660,-500.0,0.00021917,4]
[330596671,1719607853669,-634.01,0.00021917,4]
[330596672,1719607853678,-500.0,0.00021917,4]
[330596674,1719607853689,-606.63,0.00021917,4]
[330596676,1719607853699,-500.0,0.00021917,4]
[330596679,1719607853708,-500.93022057,0.00021917,4]
[330596680,1719607853718,-610.69,0.00021917,4]
[330596682,1719607853733,-500.0,0.00021917,4]
[330596684,1719607853743,-500.0,0.00021917,4]
[330596686,1719607853752,-500.0,0.00021917,4]
[330596687,1719607853761,-500.0,0.00021917,4]
[330596688,1719607853770,-504.9256339,0.00021917,4]
[330596689,1719607853779,-500.0,0.00021917,4]
[330596690,1719607853789,-789.85,0.00021917,4]
[330596691,1719607853798,-580.02,0.00021917,4]
[330596692,1719607853807,-500.0,0.00021917,4]
[330596693,1719607853815,-659.62,0.00021917,4]
[330596694,1719607853823,-736.31,0.00021917,4]
[330596695,1719607853832,-500.0,0.00021917,4]
[330596696,1719607853841,-500.0,0.00021917,4]
[330596697,1719607853850,-583.37876966,0.00021917,4]
[330596698,1719607853859,-500.0,0.00021917,4]
[330596699,1719607853867,-585.63,0.00021917,4]
[330596700,1719607853876,-541.22430319,0.00021917,4]
[330596702,1719607853885,-503.80084919,0.00021917,4]
[330596704,1719607853894,-500.0,0.00021917,4]
[330596706,1719607853903,-504.03437551,0.00021917,4]
[330596708,1719607853912,-221.85721434,0.00021917,4]
[330596710,1719607853921,-1240.35,0.00021917,4]
[330596712,1719607853930,-3873.39,0.00021917,4]
[330596714,1719607853939,-500.0,0.00021917,4]
[330596716,1719607853948,-500.0,0.00021917,4]
[330596718,1719607853957,-1001.05,0.00021917,4]
[330596720,1719607853967,-1005.85,0.00021917,4]
[330596722,1719607853977,-939.67,0.00021917,4]
[330596724,1719607853986,-406.26072955,0.00021917,4]
[330596726,1719607853995,-822.28,0.00021917,4]
[330596728,1719607854004,-500.0,0.00021917,4]
[330596730,1719607854012,-500.0,0.00021917,4]
[330596732,1719607854022,-4207.94,0.00021917,4]
[330596733,1719607854032,-500.0,0.00021917,4]
[330596735,1719607854041,-500.0,0.00021917,4]
[330596737,1719607854050,-500.0,0.00021917,4]
[330596739,1719607854059,-3041.89,0.00021917,4]
[330596742,1719607854069,-581.34357673,0.00021917,4]
[330596743,1719607854078,-500.0,0.00021917,4]
[330596745,1719607854088,-500.0,0.00021917,4]
[330596748,1719607854097,-500.0,0.00021917,4]
[330596749,1719607854106,-500.0,0.00021917,4]
[330596751,1719607854115,-2481.75,0.00021917,4]
[330596753,1719607854125,-500.0,0.00021917,4]
[330596755,1719607854134,-500.0,0.00021917,4]
[330596757,1719607854143,-500.0,0.00021917,4]
[330596759,1719607854152,-500.0,0.00021917,4]
[330596761,1719607854162,-509.27116852,0.00021917,4]
[330596763,1719607854171,-500.0,0.00021917,4]
[330596765,1719607854180,-500.0,0.00021917,4]
[330596767,1719607854190,-500.0,0.00021917,4]
[330596769,1719607854199,-500.0,0.00021917,4]
[330596771,1719607854208,-500.0,0.00021917,4]
[330596773,1719607854218,-500.0,0.00021917,4]
[330596775,1719607854227,-500.0,0.00021917,4]
[330596777,1719607854238,-500.0,0.00021917,4]
[330596779,1719607854247,-500.0,0.00021917,4]
[330596781,1719607854256,-500.0,0.00021917,4]
[330596783,1719607854266,-500.0,0.00021917,4]
[330596785,1719607854275,-500.0,0.00021917,4]
[330596787,1719607854284,-174.58359175,0.00021917,4]
[330596789,1719607854294,-500.0,0.00021917,4]
[330596791,1719607854304,-500.0,0.00021917,4]
[330596793,1719607854313,-500.0,0.00021917,4]
[330596795,1719607854323,-655.85,0.00021917,4]
[330596797,1719607854332,-502.42512537,0.00021917,4]
[330596799,1719607854342,-781.26,0.00021917,4]
[330596801,1719607854352,-980.55,0.00021917,4]
[330596803,1719607854361,-500.0,0.00021917,4]
[330596805,1719607854371,-500.0,0.00021917,4]
[330596807,1719607854381,-503.41835186,0.00021917,4]
[330596809,1719607854392,-500.0,0.00021917,4]
[330596811,1719607854404,-500.0,0.00021917,4]
[330596813,1719607854414,-500.0,0.00021917,4]
[330596815,1719607854423,-500.0,0.00021917,4]
[330596817,1719607854433,-500.0,0.00021917,4]
[330596828,1719607854527,-514.86,0.00021917,4]
[330596830,1719607854551,-514.86,0.00021917,4]
[330596832,1719607854563,-514.86,0.00021917,4]
[330596834,1719607854575,-500.0,0.00021917,4]
[330596836,1719607854585,-514.86,0.00021917,4]
[330596838,1719607854595,-514.86,0.00021917,4]
[330596840,1719607854605,-514.86,0.00021917,4]
[330596842,1719607854615,-500.0,0.00021917,4]
[330596844,1719607854625,-514.86,0.00021917,4]
[330596846,1719607854635,-514.86,0.00021917,4]
[330596848,1719607854646,-514.86,0.00021917,4]
[330596850,1719607854659,-514.86,0.00021917,4]
[330596852,1719607854669,-514.86,0.00021917,4]
[330596854,1719607854679,-514.86,0.00021917,4]
[330596856,1719607854690,-514.86,0.00021917,4]
[330596858,1719607854699,-514.86,0.00021917,4]
[330596860,1719607854709,-514.86,0.00021917,4]
[330596862,1719607854719,-500.0,0.00021917,4]
[330596864,1719607854729,-514.86,0.00021917,4]
[330596866,1719607854743,-500.0,0.00021917,4]
[330596868,1719607854752,-514.86,0.00021917,4]
[330596870,1719607854762,-556.19607455,0.00021917,4]
[330596872,1719607854771,-514.86,0.00021917,4]
[330596874,1719607854781,-500.0,0.00021917,4]
[330596876,1719607854790,-514.86,0.00021917,4]
[330596878,1719607854799,-12014.06,0.00021917,4]
[330596880,1719607854808,-514.86,0.00021917,4]
[330596881,1719607854818,-514.86,0.00021917,4]
[330596884,1719607854827,-514.86,0.00021917,4]
[330596885,1719607854837,-514.86,0.00021917,4]
[330596887,1719607854846,-514.9035021,0.00021917,4]
[330596889,1719607854856,-500.0,0.00021917,4]
[330596891,1719607854866,-500.0,0.00021917,4]